bitfinex/quotes_ETHUSD_20241212
["timestamp","ask_amount","ask_price","bid_price","bid_amount"]
[1734015619565,1.6016,3980.0,3979.2,2.26175]
[1734015619770,1.6016,3980.0,3979.9,2.26136]
[1734015619967,1.6016,3980.0,3979.6,2.26149]
[1734015620277,1.6016,3980.0,3979.5,2.26158]
[1734015620646,1.6016,3980.0,3978.6,2.90496081]
[1734015620845,1.6016,3980.0,3978.9,2.26189]
[1734015621049,1.6016,3980.0,3978.7,5.26203]
[1734015621050,1.55,3979.5,3978.7,5.26203]
[1734015621251,1.5183,3979.4,3978.5,2.26213]
[1734015621580,1.5183,3979.4,3978.6,2.26208]
[1734015621759,1.5183,3979.4,3978.7,2.262]
[1734015621954,1.5183,3979.4,3978.2,2.26232]
[1734015622155,1.82513,3979.4,3978.1,2.90496081]
[1734015622356,1.82513,3979.4,3978.1,5.16730081]
[1734015622570,1.82513,3979.4,3978.1,2.90496081]
[1734015622943,1.55,3979.5,3979.3,2.2617]
[1734015623149,3.1,3980.2,3980.1,2.26124]
[1734015623388,0.58756,3980.2,3980.1,2.26124]
[1734015623592,1.514,3981.3,3980.8,2.26085]
[1734015624089,1.514,3981.3,3980.5,5.90496081]
[1734015624090,1.514,3981.3,3980.5,2.90496081]
[1734015624386,1.514,3981.3,3980.8,2.26085]
[1734015624584,1.55,3982.2,3980.8,2.77743108]
[1734015624761,1.6254,3981.8,3980.8,5.77743108]
[1734015624947,1.6254,3981.8,3980.8,2.26085]
[1734015625550,1.6254,3981.8,3980.8,2.21085]
[1734015628038,3.1,3980.9,3980.8,2.21085]
[1734015629098,3.1,3980.9,3980.5,2.90496081]
[1734015629099,3.1,3980.9,3980.6,2.26095]
[1734015629306,3.1,3980.9,3980.5,2.90496081]
[1734015629826,1e-05,3980.9,3980.8,2.26085]
[1734015630038,1e-05,3980.9,3980.5,2.90496081]
[1734015630181,1e-05,3980.9,3980.0,1.5496]
[1734015630182,1e-05,3980.9,3980.4,2.26105]
[1734015630383,1e-05,3980.9,3980.0,2.90496081]
[1734015630652,1e-05,3980.9,3980.5,2.90496081]
[1734015630930,1e-05,3980.9,3980.8,2.26085]
[1734015631091,1.55,3982.2,3981.5,2.26045]
[1734015634862,3.1,3981.6,3981.5,2.26045]
[1734015636474,3.1,3981.6,3981.2,2.26059]
[1734015636609,1.659,3981.5,3981.2,2.26059]
[1734015636808,2.1349,3981.5,3980.6,2.90496081]
[1734015637705,1.659,3981.5,3981.1,2.90496081]
[1734015637913,3.1,3981.6,3981.5,2.26045]
[1734015638909,3.1,3981.6,3981.2,2.26057]
[1734015639109,3.1,3981.6,3981.1,2.90496081]
[1734015639330,3.1,3981.6,3981.5,2.26045]
[1734015641422,4.65,3981.6,3981.5,2.26045]
[1734015641726,5.115,3981.6,3981.3,2.26056]
[1734015641926,1.5382,3981.5,3980.6,2.90496081]
[1734015642180,1.5382,3981.5,3979.7,2.26147]
[1734015642357,1.5382,3981.5,3979.6,2.90496081]
[1734015642358,1.5382,3980.8,3979.8,0.96]
[1734015642570,1.5382,3980.7,3979.6,2.90496081]
[1734015642887,1.6142,3980.5,3979.6,2.90496081]
[1734015643029,1.6142,3980.3,3979.1,2.90496081]
[1734015643230,1.6142,3980.3,3979.2,2.26176]
[1734015643472,1.6142,3980.3,3979.6,2.26152]
[1734015643683,1.6142,3980.3,3979.6,2.26149]
[1734015643840,0.16142,3980.2,3979.8,2.26141]
[1734015644176,1.6142,3980.3,3979.9,2.26131]
[1734015644322,1.6142,3980.3,3979.6,2.90496081]
[1734015644532,1.6182,3980.1,3978.5,2.90496081]
[1734015644837,0.55,3979.8,3978.5,2.90496081]
[1734015645042,1.6182,3979.5,3978.5,2.90496081]
[1734015645236,0.16182,3979.4,3978.5,2.90496081]
[1734015645639,0.16182,3979.4,3978.5,5.16709081]
[1734015645833,1.5575,3979.5,3978.0,2.90496081]
[1734015646038,0.55,3980.1,3977.5,2.90496081]
[1734015646039,1.5575,3979.0,3977.5,2.90496081]
[1734015646229,1.5575,3978.8,3977.9,2.26247]
[1734015646643,1.5575,3978.8,3977.7,2.26259]
[1734015646846,1.5199,3978.6,3977.5,2.90496081]
[1734015647040,1.5199,3978.6,3977.5,5.16767081]
[1734015647327,1.5199,3978.6,3976.9,2.26301]
[1734015647328,1.5199,3978.4,3977.0,2.90496081]
[1734015647554,1.5107,3977.9,3976.5,2.90496081]
[1734015647758,1.5107,3977.9,3977.0,2.90496081]
[1734015648064,1.5107,3977.9,3977.5,5.16766081]
[1734015648460,1.5107,3977.9,3977.6,2.26266]
[1734015649099,1.5107,3977.9,3977.5,2.90496081]
[1734015649304,3.2025,3978.4,3977.5,3.24814409]
[1734015649505,3.2025,3978.4,3977.5,2.90496081]
[1734015649673,3.2025,3978.4,3977.8,2.26255]
[1734015649877,3.52275,3978.4,3977.5,2.90496081]
[1734015650114,3.2025,3978.4,3977.9,2.26249]
[1734015650518,3.2025,3978.4,3978.0,2.26244]
[1734015650817,3.2025,3978.4,3977.7,2.26257]
[1734015650987,3.2025,3978.4,3977.1,0.29049608]
[1734015651185,3.2025,3978.4,3977.4,2.26278]
[1734015651385,4.7525,3978.4,3977.4,2.26276]
[1734015651786,4.7525,3978.4,3976.3,2.26335]
[1734015651787,4.7525,3978.4,3977.1,2.2629]
[1734015652119,0.55,3978.2,3976.9,2.26305]
[1734015652418,1.5368,3978.1,3976.5,2.90496081]
[1734015652632,1.5368,3978.1,3976.8,2.26312]
[1734015652825,1.5368,3978.1,3976.7,2.26318]
[1734015652993,1.5368,3978.1,3977.0,2.90496081]
[1734015653194,1.5368,3978.1,3977.9,2.26246]
[1734015653582,1.5368,3978.1,3977.0,2.90496081]
[1734015653923,1.5368,3978.1,3977.6,2.26265]
[1734015654099,1.5368,3978.1,3977.1,0.29049608]
[1734015654297,1.5368,3978.1,3977.1,2.26291]
[1734015654605,2.2158,3978.0,3976.6,2.26321]
[1734015655007,2.2158,3978.0,3976.9,2.26306]
[1734015655487,2.2158,3978.0,3976.5,2.90496081]
[1734015655688,1.5597,3977.9,3976.5,2.90496081]
[1734015656005,0.55,3978.0,3976.0,0.49516564]
[1734015656006,1.5379,3977.7,3976.4,2.2633]
[1734015656255,1.5379,3977.5,3976.1,2.26352]
[1734015656460,1.5379,3977.5,3976.5,2.26328]
[1734015656969,1.513,3977.1,3975.8,2.26367]
[1734015657285,1.5876,3976.8,3975.1,1.501]
[1734015657490,1.5876,3976.8,3976.0,2.26358]
[1734015658236,3.1376,3976.8,3975.5,2.90496081]
[1734015658474,3.1376,3976.8,3975.4,2.26392]
[1734015658475,1.55,3976.8,3976.7,2.26318]
[1734015659572,1.5351,3977.5,3976.7,2.26318]
[1734015659883,1.5108,3978.0,3977.7,2.26259]
[1734015660691,1.5108,3978.0,3976.9,2.26306]
[1734015661184,1.5108,3978.0,3976.8,0.51681408]
[1734015661346,1.5108,3978.0,3977.1,2.26294]
[1734015661542,3.0608,3978.0,3976.7,2.26313]
[1734015661741,3.0608,3978.0,3977.9,2.2625]
[1734015662287,1.55,3978.0,3977.9,2.2625]
[1734015662481,0.58642,3978.4,3978.3,2.26227]
[1734015662783,1.6584,3980.1,3980.0,2.2613]
[1734015662953,1.55,3980.2,3980.1,2.26124]
[1734015663478,1.55,3980.2,3980.1,2.487364]
[1734015663686,0.29378,3980.2,3980.1,2.487364]
[1734015663883,1e-05,3980.2,3980.1,2.487364]
[1734015664874,1.55001,3980.2,3980.1,2.487364]
[1734015665742,1.55001,3980.2,3979.9,2.01007]
[1734015665945,1.55001,3980.2,3979.1,2.01048]
[1734015666159,1.55001,3980.2,3980.0,2.01003]
[1734015667282,1.55001,3980.2,3980.0,2.00772921]
[1734015667697,1.55001,3980.2,3980.0,5.00772921]
[1734015667881,1e-05,3980.2,3980.1,5.42674174]
[1734015668084,1e-05,3980.2,3980.1,21.06533774]
[1734015668394,4.65,3981.6,3980.2,5.00994]
[1734015668576,4.65,3981.6,3981.5,2.00929]
[1734015669309,4.65,3981.6,3981.3,2.00939]
[1734015669610,4.65,3981.6,3981.4,2.00932]
[1734015670409,4.65,3981.6,3981.4,2.35189151]
[1734015671395,4.65,3981.6,3981.1,3.0]
[1734015671624,6.2,3981.6,3981.4,2.00931]
[1734015672284,1.17688,3981.6,3981.5,1.5931]
[1734015672639,1.17688,3981.6,3981.5,4.5931]
[1734015672831,0.66804081,3981.6,3981.0,4.5931]
[1734015672984,0.66804081,3981.6,3980.9,2.00957]
[1734015673190,0.66804081,3981.6,3980.7,3.21568819]
[1734015673594,0.66804081,3981.6,3981.4,2.00933]
[1734015673778,0.66804081,3981.6,3980.7,3.53725701]
[1734015674284,0.66804081,3981.6,3980.8,3.0]
[1734015674488,0.66804081,3981.6,3981.2,2.00943]
[1734015674705,0.66804081,3981.6,3980.8,3.0]
[1734015675001,2.21804081,3981.6,3980.8,3.0]
[1734015675201,2.21804081,3981.6,3980.1,0.50182035]
[1734015675202,2.43984489,3981.6,3980.1,0.50182035]
[1734015675400,2.51169,3981.4,3979.9,5.22576819]
[1734015675572,2.51174,3981.3,3979.9,3.21568819]
[1734015675788,0.55,3981.0,3979.4,2.01031]
[1734015675972,0.55,3981.0,3979.3,3.21568819]
[1734015676215,1.5495,3981.1,3979.9,3.21568819]
[1734015676427,2.21804081,3981.6,3980.5,3.21568819]
[1734015676731,2.21804081,3981.6,3981.1,2.00949]
[1734015677822,2.21804081,3981.6,3981.5,2.00929]
[1734015678116,2.21804081,3981.6,3980.6,3.0]
[1734015678278,0.22180408,3981.5,3980.6,3.0]
[1734015678480,0.22180408,3981.5,3980.5,3.21568819]
[1734015678481,3.76804081,3981.6,3980.5,3.21568819]
[1734015678876,3.76804081,3981.6,3980.5,5.22546819]
[1734015679376,3.76804081,3981.6,3980.5,3.21568819]
[1734015680008,1.6662,3981.5,3980.5,3.21568819]
[1734015680213,0.55,3981.4,3979.9,3.21568819]
[1734015680426,1.6662,3981.1,3979.9,3.21568819]
[1734015680725,1.6662,3981.1,3980.5,2.00979]
[1734015680895,1.6662,3981.1,3980.3,2.00989]
[1734015681095,1.6662,3981.1,3980.6,2.00972]
[1734015681299,5.34354081,3981.6,3981.1,2.00947]
[1734015682319,5.34354081,3981.6,3981.0,2.90458294]
[1734015682528,5.87789489,3981.6,3980.7,2.00969]
[1734015682727,5.34354081,3981.6,3981.0,2.90458294]
[1734015682891,5.34354081,3981.6,3981.2,2.00943]
[1734015683088,3.76804081,3981.6,3981.5,2.00929]
[1734015683281,3.76804081,3981.6,3981.5,4.91387294]
[1734015684936,1.55070081,3981.6,3981.5,7.91387294]
[1734015685097,1.55070081,3981.6,3981.5,8.86434023]
[1734015685281,8.1e-07,3981.6,3981.5,8.86434023]
[1734015687139,8.1e-07,3981.6,3981.5,4.91387294]
[1734015687899,8.1e-07,3981.6,3981.5,2.90458294]
[1734015688103,8.1e-07,3981.6,3981.0,2.90458294]
[1734015688333,1.5515,3981.5,3981.0,2.90458294]
[1734015688842,1.5515,3981.5,3981.0,4.91410294]
[1734015689140,1.55000081,3981.6,3981.5,2.00929]
[1734015689349,1.55000081,3981.6,3981.5,4.91387294]
[1734015689904,0.9,3981.2,3980.1,0.30531123]
[1734015690102,0.55,3981.0,3979.1,8.58420028]
[1734015690450,1.68078889,3981.6,3979.1,8.58420028]
[1734015690451,2.51266,3979.9,3979.1,8.58420028]
[1734015690604,0.55,3980.8,3979.1,8.58420028]
[1734015690809,2.51288,3979.5,3979.1,8.58420028]
[1734015691046,7.53654,3980.6,3979.1,8.58420028]
[1734015691249,0.2447,3979.4,3979.1,8.58420028]
[1734015691408,2.51306,3979.2,3979.1,8.58420028]
[1734015691749,2.51306,3979.2,3979.1,4.29274836]
[1734015692046,3.188536,3979.2,3979.1,4.29274836]
[1734015692254,0.86255752,3979.2,3979.1,4.29274836]
[1734015692545,0.2447,3979.2,3979.1,4.29274836]
[1734015693428,0.7947,3979.2,3979.1,4.29274836]
[1734015694950,2.3447,3979.2,3979.1,4.29274836]
[1734015695448,2.78128919,3979.2,3979.1,4.29274836]
[1734015695649,3.46571911,3979.2,3979.1,4.29274836]
[1734015696212,3.21571911,3979.2,3979.1,4.29274836]
[1734015696406,1.7947,3979.2,3979.1,4.29274836]
[1734015696912,1.79167588,3979.2,3979.1,4.29274836]
[1734015698022,1.55,3979.2,3979.1,4.29274836]
[1734015698235,3.1,3979.2,3979.1,4.29274836]
[1734015700420,0.2416,3981.0,3979.2,1.6249]
[1734015700729,0.2416,3981.5,3980.5,1.75857]
[1734015700948,0.2416,3981.5,3979.5,3.21347405]
[1734015701383,0.2416,3981.5,3980.2,1.75866]
[1734015701566,1.7916,3981.5,3980.4,1.7586]
[1734015701738,1.7916,3981.5,3980.3,1.75863]
[1734015701940,2.38998189,3981.5,3980.4,1.75861]
[1734015702471,1.7916,3981.5,3980.8,1.75843]
[1734015702875,1.7916,3981.5,3979.7,1.75892]
[1734015702876,1.55,3981.5,3979.7,1.75892]
[1734015703183,1.55,3981.5,3980.9,1.75839]
[1734015703987,0.2416,3981.3,3980.0,1.75877]
[1734015704136,2.942128,3981.2,3979.8,1.75888]
[1734015704337,0.430328,3981.2,3980.3,1.75865]
[1734015704544,0.55,3981.2,3980.3,1.75865]
[1734015704758,2.1,3981.2,3980.0,1.75875]
[1734015705002,2.1,3981.2,3979.3,2.82616884]
[1734015705003,0.55,3981.0,3979.4,1.75901]
[1734015705183,4.61182,3981.2,3979.7,1.75891]
[1734015705381,1.55,3981.2,3980.1,1.7587]
[1734015705581,1.89723022,3981.2,3980.2,1.75866]
[1734015706011,1.89723022,3981.2,3979.9,1.75881]
[1734015706320,0.55,3981.1,3979.3,1.5707]
[1734015706618,0.55,3981.1,3978.8,2.02304439]
[1734015706619,0.55,3980.9,3978.8,2.02304439]
[1734015706830,0.13416,3980.8,3978.9,3.41577849]
[1734015707121,0.55,3980.7,3979.0,1.75923]
[1734015707426,0.55,3980.7,3978.9,3.41577849]
[1734015707427,0.55,3980.7,3979.8,1.75887]
[1734015707592,0.13416,3980.8,3978.9,3.41577849]
[1734015707593,0.13416,3980.8,3979.9,1.75881]
[1734015707798,0.55,3980.9,3979.1,1.75919]
[1734015708011,0.2416,3981.0,3980.0,1.75876]
[1734015708235,1.55,3980.9,3979.1,1.75919]
[1734015708520,1.55,3980.9,3979.9,3.0]
[1734015708760,1.55,3980.9,3979.9,1.75883]
[1734015708885,0.17916,3980.8,3979.9,4.75883]
[1734015709489,0.17916,3980.8,3979.9,3.0]
[1734015709694,1.55,3980.9,3979.8,1.5174]
[1734015709919,1.55,3980.9,3980.2,1.75869]
[1734015710123,1.55,3980.9,3979.7,3.0]
[1734015710321,1.55,3980.9,3979.0,1.75921]
[1734015710322,0.55,3980.4,3979.0,1.75921]
[1734015710482,0.55,3980.4,3979.1,1.75918]
[1734015710685,0.330384,3980.3,3978.9,1.5329]
[1734015710907,0.55,3980.4,3979.1,1.75915]
[1734015711090,0.55,3980.4,3978.8,1.7593]
[1734015711291,0.55,3980.1,3978.7,1.75934]
[1734015711586,0.55,3979.9,3978.4,1.75945]
[1734015711885,1.55,3980.4,3977.7,1.75979]
[1734015711886,0.55,3979.0,3977.7,1.75979]
[1734015712082,0.55,3979.0,3977.8,0.327689]
[1734015712314,2.51329,3978.9,3977.3,1.75997]
[1734015712542,0.55,3978.8,3977.3,1.75997]
[1734015712722,0.55,3979.0,3977.3,1.75994]
[1734015712903,0.55,3979.0,3977.3,1.75998]
[1734015713242,0.55,3979.0,3977.2,1.76003]
[1734015713381,0.55,3979.0,3977.1,1.5171]
[1734015713382,0.880472,3979.0,3977.3,0.82506841]
[1734015713580,0.880472,3979.0,3977.5,1.75989]
[1734015713819,0.55,3979.0,3977.7,1.7598]
[1734015713991,0.55,3979.0,3977.5,1.50847]
[1734015714192,0.55,3979.0,3977.3,2.33361841]
[1734015714193,3.06319,3979.0,3977.3,2.33361841]
[1734015714494,0.55,3979.0,3977.3,0.82506841]
[1734015714698,0.2416,3979.1,3978.2,1.5082]
[1734015714906,1.55,3979.0,3978.3,0.15082]
[1734015715107,1.55,3979.0,3978.3,1.50815]
[1734015715417,1.55,3979.0,3978.1,1.50824]
[1734015715620,1.55,3979.0,3977.7,3.0]
[1734015715820,1.55,3979.0,3978.6,1.50803]
[1734015715984,1.55,3979.0,3978.3,1.50818]
[1734015716361,1.55,3979.0,3978.4,0.150818]
[1734015716567,1.55,3979.0,3977.7,4.50838]
[1734015716721,1.55,3979.0,3978.6,1.50805]
[1734015717150,1.55,3979.0,3978.1,3.0]
[1734015717359,1.55,3979.0,3977.7,3.0]
[1734015717555,1.55,3979.0,3977.8,1.50837]
[1734015717743,1.55,3979.0,3977.7,4.50838]
[1734015717744,1.55,3979.0,3977.9,0.83168574]
[1734015718458,0.55,3978.7,3977.0,3.21347405]
[1734015718625,0.55,3978.7,3977.2,1.50857]
[1734015718825,0.55,3978.7,3976.8,1.5335]
[1734015719163,0.7916,3978.4,3976.8,1.5335]
[1734015719362,0.7916,3978.4,3977.0,1.50863]
[1734015719660,0.55,3978.2,3977.2,1.50858]
[1734015719862,0.2416,3978.4,3976.8,1.5335]
[1734015720164,0.2416,3978.9,3977.2,1.50859]
[1734015720367,0.2416,3978.9,3977.1,3.0]
[1734015720729,0.2416,3978.9,3977.8,1.50836]
[1734015720924,0.2416,3978.9,3977.4,3.0]
[1734015721133,2.51338,3978.7,3976.8,1.5335]
[1734015721328,0.55,3978.7,3976.8,6.04222]
[1734015721559,0.2416,3978.8,3977.1,3.21347405]
[1734015721744,2.1,3978.7,3977.2,3.0]
[1734015721949,2.1,3978.7,3976.8,1.5335]
[1734015722136,0.2416,3978.3,3976.9,1.5087]
[1734015722660,0.55,3978.2,3976.9,1.5087]
[1734015722873,0.2416,3978.3,3977.4,1.50851]
[1734015723038,0.2416,3978.3,3977.2,1.50859]
[1734015723360,0.55,3978.2,3976.6,1.50879]
[1734015723558,0.55,3978.2,3976.5,3.21347405]
[1734015723873,0.55,3978.2,3976.9,1.5087]
[1734015724482,0.55,3978.2,3976.6,1.50879]
[1734015724786,2.51416,3977.5,3975.6,1.5137]
[1734015725081,0.55,3977.2,3975.8,1.50911]
[1734015725291,0.55,3977.2,3975.7,0.302294]
[1734015725442,3.06446,3977.0,3975.4,1.50925]
[1734015725646,3.0646,3976.8,3975.2,2.9722042]
[1734015725955,0.2416,3976.5,3975.0,1.50942]
[1734015726154,0.55,3976.4,3974.8,1.5095]
[1734015726362,0.2416,3976.5,3974.8,0.49752817]
[1734015726562,0.2416,3976.5,3975.4,1.50928]
[1734015726747,0.2416,3977.4,3975.9,3.21347405]
[1734015726953,0.2416,3977.4,3976.6,3.0]
[1734015727385,0.2416,3977.4,3976.3,1.5617]
[1734015727616,0.2416,3977.4,3976.1,1.50901]
[1734015727788,0.2416,3977.4,3976.2,0.150901]
[1734015728118,0.2416,3977.4,3976.3,1.50891]
[1734015728255,0.2416,3977.4,3975.8,1.5414]
[1734015728452,0.55,3977.3,3976.2,1.50895]
[1734015728665,0.55,3977.3,3976.0,1.50904]
[1734015728863,0.55,3977.3,3976.1,2.114044]
[1734015729192,0.55,3977.3,3976.1,0.605044]
[1734015729392,0.55,3977.3,3976.3,1.50893]
[1734015729609,1.7916,3977.4,3976.1,3.605044]
[1734015729891,1.55,3977.4,3977.0,1.50866]
[1734015730196,1.55,3977.4,3977.1,0.150866]
[1734015730401,1.55,3977.4,3977.3,1.50856]
[1734015731805,3.1,3977.4,3977.3,1.50856]
[1734015732591,3.1,3977.4,3977.1,1.5086]
[1734015733127,3.1,3977.4,3977.0,1.50866]
[1734015733494,3.1,3977.4,3976.2,3.21427463]
[1734015733495,0.2416,3977.3,3976.4,1.50886]
[1734015733733,0.2416,3977.3,3976.4,2.84154043]
[1734015734028,0.2416,3977.3,3976.4,0.84086686]
[1734015734230,0.2416,3977.3,3976.1,1.50899]
[1734015734414,0.2416,3977.3,3975.8,1.50913]
[1734015734588,0.2416,3977.3,3975.7,1.5715]
[1734015734795,0.55,3977.2,3975.7,3.08064]
[1734015735109,2.1,3977.2,3975.7,3.08064]
[1734015735297,1.55,3977.2,3975.9,1.50909]
[1734015735529,1.55,3977.2,3976.5,1.50885]
[1734015735727,1.55,3977.2,3975.8,3.64352209]
[1734015735931,1.55,3977.2,3976.4,1.50886]
[1734015736102,0.55,3977.1,3975.8,0.64352209]
[1734015736295,0.55,3977.1,3976.2,1.50894]
[1734015736496,1.55,3977.2,3976.2,3.21427463]
[1734015736691,1.55,3977.2,3977.1,1.50863]
[1734015737650,1.55,3977.2,3976.5,3.0]
[1734015737805,1.55,3977.2,3976.8,1.50871]
[1734015738011,1.55,3977.2,3976.9,0.150871]
[1734015738228,1.55,3977.2,3977.1,1.50863]
[1734015738409,3.1,3977.2,3977.1,1.50863]
[1734015739041,0.29293,3977.5,3977.2,3.0]
[1734015739196,0.29293,3977.5,3976.9,0.150871]
[1734015739197,3.1,3979.0,3978.6,1.50806]
[1734015740739,0.0350824,3979.0,3978.9,1.50795]
[1734015741239,0.0350824,3979.0,3978.9,32.136776]
[1734015741240,2.4e-06,3979.0,3978.9,32.136776]
[1734015741453,2.4e-06,3979.0,3978.9,29.205609]
[1734015741642,2.4e-06,3979.0,3978.9,28.753676]
[1734015741802,1.55,3980.4,3980.3,1.50742]
[1734015741999,1.55,3980.4,3980.0,1.5075]
[1734015742544,1.55,3980.4,3979.7,3.0]
[1734015742545,1.55,3980.4,3979.7,1.50763]
[1734015742804,1.55,3980.4,3979.8,1.5076]
[1734015743009,1.55,3980.4,3980.0,1.50753]
[1734015743166,1.55,3980.4,3980.3,1.50742]
[1734015743364,1.55,3980.4,3979.5,3.0]
[1734015743365,1.55,3980.4,3980.0,1.50751]
[1734015744000,1.55,3980.4,3979.3,3.0]
[1734015744183,1.55,3980.4,3979.6,3.0]
[1734015744355,1.55,3980.4,3979.8,3.0]
[1734015744551,0.2416,3980.3,3979.5,3.0]
[1734015744762,0.2416,3980.3,3979.6,2.5128]
[1734015745058,0.17916,3980.2,3979.7,3.0]
[1734015745754,0.17916,3980.2,3979.4,3.0]
[1734015745987,0.17916,3980.2,3979.5,3.0]
[1734015746356,0.17916,3980.2,3979.5,5.51286]
[1734015746597,0.17916,3980.2,3980.0,3.0]
[1734015746992,0.17916,3980.2,3979.4,3.1410001]
[1734015747246,0.352076,3980.1,3979.7,3.0]
[1734015747457,0.352076,3980.1,3979.5,2.51287]
[1734015747757,1.7916,3980.3,3979.9,2.51261]
[1734015747930,1.7916,3980.3,3980.0,5.51251]
[1734015748093,1.7916,3980.3,3979.5,3.0]
[1734015748396,1.7916,3980.3,3979.2,4.94746593]
[1734015748397,3.3416,3980.3,3980.1,3.0]
[1734015748599,3.1,3980.3,3980.2,5.51243]
[1734015750262,3.1,3980.3,3979.9,3.51215501]
[1734015750464,3.1,3980.3,3980.2,2.51243]
[1734015750596,3.1,3980.3,3979.8,5.72691463]
[1734015750597,3.565,3980.3,3979.8,0.13932054]
[1734015750803,3.8066,3980.3,3979.7,3.0]
[1734015751104,3.8066,3980.3,3979.6,2.51275]
[1734015751300,0.55,3980.2,3979.2,0.6422947]
[1734015751557,0.68109536,3980.2,3978.7,1.6142]
[1734015751836,0.55,3980.0,3979.5,2.51285]
[1734015752024,0.55,3980.0,3979.2,2.51302]
[1734015752342,0.60376954,3980.1,3978.9,2.51325]
[1734015752543,0.60376954,3980.1,3979.7,2.51271]
[1734015753212,0.55,3980.0,3979.2,5.72727463]
[1734015753410,0.27037695,3979.9,3979.2,2.513]
[1734015754009,0.27037695,3979.9,3979.3,2.51298]
[1734015754238,0.27037695,3979.9,3979.6,2.5128]
[1734015754625,1.55,3980.2,3979.0,5.51314]
[1734015754852,0.55,3980.1,3979.0,3.0]
[1734015755032,0.55,3980.1,3978.8,3.23226784]
[1734015755033,0.13110557,3980.0,3979.3,3.0]
[1734015755236,0.55,3979.9,3979.3,3.0]
[1734015755434,0.55,3979.9,3978.3,3.13004277]
[1734015755435,0.55,3979.7,3978.5,2.6082046]
[1734015755637,0.2416,3979.4,3978.3,0.51124081]
[1734015755965,0.55,3979.0,3977.4,8.02969092]
[1734015756175,0.55,3979.0,3977.0,4.59220345]
[1734015756176,2.51332,3978.8,3977.2,2.60888145]
[1734015756466,0.2416,3978.6,3977.2,2.51431]
[1734015756767,0.2416,3978.6,3976.9,5.51553092]
[1734015756768,0.2416,3978.6,3977.5,2.51414]
[1734015756926,0.2416,3978.6,3976.9,3.04817414]
[1734015757128,0.55,3978.5,3976.9,2.90664947]
[1734015757363,0.2416,3978.4,3976.9,5.42115947]
[1734015757561,0.2416,3978.4,3977.1,2.51437]
[1734015757769,0.2416,3978.4,3977.4,2.51418]
[1734015758333,0.2416,3978.4,3976.9,6.22414356]
[1734015758334,0.2416,3978.4,3977.2,2.51432]
[1734015758529,1.55,3978.4,3977.0,3.0]
[1734015758731,0.2416,3977.9,3976.4,5.51687073]
[1734015759031,0.2416,3977.9,3976.5,0.55168707]
[1734015759226,0.2416,3977.9,3976.9,2.51445]
[1734015760032,0.2416,3977.9,3976.5,0.55168707]
[1734015760033,0.2416,3977.9,3976.8,3.0]
[1734015761050,0.2416,3977.9,3977.4,3.0]
[1734015761284,0.2416,3977.9,3977.5,3.0]
[1734015761581,0.2416,3977.9,3977.0,3.0]
[1734015761997,1.7916,3977.9,3977.2,3.0]
[1734015762991,1.7916,3977.9,3977.7,3.0]
[1734015762992,1.55,3977.9,3977.7,3.0]
[1734015763198,1.55,3977.9,3977.8,5.51395]
[1734015764004,1.21686639,3977.9,3977.8,5.51395]
[1734015764314,1.21686639,3977.9,3977.8,7.17775]
[1734015764471,1.21686639,3977.9,3977.8,5.51395]
[1734015764666,1.21686639,3977.9,3977.8,6.18501204]
[1734015764891,1.55,3978.4,3978.3,5.51363]
[1734015765409,3.1,3978.4,3978.3,5.51363]
[1734015765973,9.99e-06,3978.4,3978.3,7.10483]
[1734015766225,3.3416,3980.2,3979.8,3.0]
[1734015766428,3.3416,3980.2,3979.6,2.51281]
[1734015766581,3.3416,3980.2,3980.1,3.0]
[1734015766923,3.47269095,3980.2,3979.8,3.0]
[1734015767077,3.47269095,3980.2,3979.5,3.0]
[1734015767276,3.47269095,3980.2,3979.8,3.0]
[1734015767888,3.47269095,3980.2,3979.5,3.0]
[1734015768102,3.47269095,3980.2,3979.7,2.51274]
[1734015768405,3.47269095,3980.2,3979.8,3.0]
[1734015768804,5.02269095,3980.2,3979.8,3.0]
[1734015769499,4.78109095,3980.2,3980.0,3.0]
[1734015769702,4.78109095,3980.2,3980.0,2.51256]
[1734015769888,4.78109095,3980.2,3979.7,3.0]
[1734015770215,4.78109095,3980.2,3980.1,2.51249]
[1734015770439,4.65,3980.2,3980.1,5.51249]
[1734015770889,3.02553071,3980.2,3980.1,5.51249]
[1734015771428,3.02553071,3980.2,3980.1,5.64884544]
[1734015772121,4.57553071,3980.2,3980.1,5.64884544]
[1734015772478,4.57553071,3980.2,3980.1,7.73520805]
[1734015772679,4.57553071,3980.2,3980.1,7.21369891]
[1734015772886,4.57553071,3980.2,3980.1,5.64884544]
[1734015773323,4.57553071,3980.2,3980.1,7.21369891]
[1734015773826,4.57553071,3980.2,3979.9,1.56485347]
[1734015774135,4.57553071,3980.2,3979.9,3.00741087]
[1734015774425,4.57553071,3980.2,3979.7,1.56485347]
[1734015774726,4.57553071,3980.2,3979.6,1.56485347]
[1734015774727,0.13108853,3980.1,3979.6,1.56485347]
[1734015775127,0.13108853,3980.1,3979.3,0.12696631]
[1734015775128,0.13108853,3980.1,3979.3,4.07781347]
[1734015775287,0.13108853,3980.1,3979.2,1.56485347]
[1734015775625,0.2416,3980.0,3979.1,1.56485347]
[1734015775830,0.71015354,3979.9,3978.9,1.56485347]
[1734015776015,0.71015354,3979.9,3978.8,4.07811347]
[1734015776323,0.71015354,3979.9,3978.6,2.22813397]
[1734015776324,0.71015354,3979.9,3979.0,2.51317]